[Event "Titled Tuesday Blitz September 13 Late 2022"]
[White "Maksimovic, Bojan"]
[Black "Marjanovic, Annamaria"]
[WhiteFideId "14408120"]
[BlackFideId "750930"]
[WhiteElo "2447"]
[BlackElo "2156"]
[Result "1-0"]
[Round "07"]
[TimeControl "180+1"]
[Date "2022.09.13"]
[WhiteClock "0:01:49"]
[BlackClock "0:00:13"]

1. e4 {[%clk 0:03:00]}  e6 {[%clk 0:02:58]} 2. d3 {[%clk 0:03:00]}  d5 {[%clk 0:02:59]} 3. Nd2 {[%clk 0:03:00]}  Nf6 {[%clk 0:02:59]} 4. Ngf3 {[%clk 0:03:00]}  Be7 {[%clk 0:02:59]} 5. g3 {[%clk 0:03:00]}  O-O {[%clk 0:03:00]} 6. Bg2 {[%clk 0:03:01]}  c5 {[%clk 0:03:00]} 7. O-O {[%clk 0:03:01]}  Nc6 {[%clk 0:03:01]} 8. e5 {[%clk 0:03:01]}  Nd7 {[%clk 0:03:01]} 9. Re1 {[%clk 0:03:01]}  Qc7 {[%clk 0:03:01]} 10. Qe2 {[%clk 0:03:02]}  Nd4 {[%clk 0:02:59]} 11. Nxd4 {[%clk 0:03:02]}  cxd4 {[%clk 0:02:59]} 12. Nf3 {[%clk 0:03:03]}  Qc5 {[%clk 0:02:52]} 13. a3 {[%clk 0:03:02]}  a5 {[%clk 0:02:50]} 14. b3 {[%clk 0:03:02]}  Qa7 {[%clk 0:02:33]} 15. Bb2 {[%clk 0:03:02]}  Bc5 {[%clk 0:02:32]} 16. Qd2 {[%clk 0:03:02]}  f6 {[%clk 0:02:24]} 17. exf6 {[%clk 0:02:57]}  Nxf6 {[%clk 0:02:25]} 18. Ne5 {[%clk 0:02:57]}  b5 {[%clk 0:02:18]} 19. Re2 {[%clk 0:02:57]}  Qc7 {[%clk 0:02:14]} 20. Rae1 {[%clk 0:02:57]}  Qd6 {[%clk 0:02:08]} 21. Ra1 {[%clk 0:02:47]}  Bd7 {[%clk 0:02:01]} 22. Bh3 {[%clk 0:02:41]}  Be8 {[%clk 0:01:53]} 23. Qg5 {[%clk 0:02:39]}  h6 {[%clk 0:01:46]} 24. Qd2 {[%clk 0:02:29]}  Bh5 {[%clk 0:01:44]} 25. Ree1 {[%clk 0:02:29]}  Kh7 {[%clk 0:01:27]} 26. f4 {[%clk 0:02:17]}  Ra6 {[%clk 0:01:12]} 27. Qf2 {[%clk 0:02:17]}  Qc7 {[%clk 0:01:10]} 28. b4 {[%clk 0:02:09]}  axb4 {[%clk 0:01:02]} 29. axb4 {[%clk 0:02:10]}  Rxa1 {[%clk 0:01:01]} 30. Rxa1 {[%clk 0:02:11]}  Bxb4 {[%clk 0:01:00]} 31. Bxd4 {[%clk 0:02:11]}  Bc3 {[%clk 0:00:48]} 32. Ra7 {[%clk 0:02:10]}  Bxd4 {[%clk 0:00:47]} 33. Rxc7 {[%clk 0:02:10]}  Bxf2+ {[%clk 0:00:47]} 34. Kxf2 {[%clk 0:02:11]}  Re8 {[%clk 0:00:46]} 35. Ke3 {[%clk 0:02:11]}  d4+ {[%clk 0:00:42]} 36. Kxd4 {[%clk 0:02:10]}  Rd8+ {[%clk 0:00:42]} 37. Kc5 {[%clk 0:02:08]}  Nd5 {[%clk 0:00:41]} 38. Ra7 {[%clk 0:02:07]}  Rc8+ {[%clk 0:00:39]} 39. Nc6 {[%clk 0:02:05]}  Be8 {[%clk 0:00:36]} 40. Bxe6 {[%clk 0:02:05]}  Rxc6+ {[%clk 0:00:35]} 41. Kxd5 {[%clk 0:02:03]}  Rxc2 {[%clk 0:00:35]} 42. h4 {[%clk 0:02:01]}  Rd2 {[%clk 0:00:30]} 43. d4 {[%clk 0:02:00]}  Bg6 {[%clk 0:00:29]} 44. f5 {[%clk 0:01:58]}  Bh5 {[%clk 0:00:28]} 45. Ke4 {[%clk 0:01:51]}  b4 {[%clk 0:00:27]} 46. Ra8 {[%clk 0:01:50]}  Re2+ {[%clk 0:00:21]} 47. Kd3 {[%clk 0:01:50]}  Bg4 {[%clk 0:00:13]} 48. Bg8+ {[%clk 0:01:48]}  Kh8 {[%clk 0:00:13]} 49. Bf7+ {[%clk 0:01:49]}  Kh7 {[%clk 0:00:13]} 50. Bg6# {[%clk 0:01:49]} 1-0


[Site "https://www.chess.com"]

[Event "Titled Tuesday Blitz September 13 Late 2022"]
[White "Martinez Alcantara, Jose Eduardo"]
[Black "Melikyan, Gnel"]
[WhiteFideId "3805662"]
[BlackFideId "54109990"]
[WhiteElo "2703"]
[BlackElo "1772"]
[Result "1-0"]
[Round "07"]
[TimeControl "180+1"]
[Date "2022.09.13"]
[WhiteClock "0:01:24"]
[BlackClock "0:00:05"]

1. e4 {[%clk 0:03:00]}  c5 {[%clk 0:02:53]} 2. Nf3 {[%clk 0:02:59]}  Nc6 {[%clk 0:02:53]} 3. c3 {[%clk 0:03:00]}  d5 {[%clk 0:02:50]} 4. e5 {[%clk 0:02:59]}  Bf5 {[%clk 0:02:48]} 5. Bb5 {[%clk 0:02:58]}  e6 {[%clk 0:02:46]} 6. O-O {[%clk 0:02:57]}  h6 {[%clk 0:02:41]} 7. d4 {[%clk 0:02:55]}  Qb6 {[%clk 0:02:40]} 8. Bd3 {[%clk 0:02:55]}  Bxd3 {[%clk 0:02:39]} 9. Qxd3 {[%clk 0:02:55]}  cxd4 {[%clk 0:02:36]} 10. cxd4 {[%clk 0:02:56]}  Nge7 {[%clk 0:02:36]} 11. Nc3 {[%clk 0:02:56]}  Nf5 {[%clk 0:02:34]} 12. Nxd5 {[%clk 0:02:48]}  Qd8 {[%clk 0:02:13]} 13. Nf4 {[%clk 0:02:47]}  Nfxd4 {[%clk 0:02:08]} 14. Rd1 {[%clk 0:02:47]}  Nxf3+ {[%clk 0:01:42]} 15. Qxf3 {[%clk 0:02:48]}  Qc7 {[%clk 0:01:39]} 16. Nh5 {[%clk 0:02:37]}  Qxe5 {[%clk 0:01:25]} 17. Bf4 {[%clk 0:02:32]}  Qb5 {[%clk 0:01:07]} 18. Rac1 {[%clk 0:02:31]}  Rc8 {[%clk 0:01:02]} 19. a3 {[%clk 0:02:18]}  a6 {[%clk 0:00:52]} 20. g4 {[%clk 0:02:16]}  Rg8 {[%clk 0:00:45]} 21. Bxh6 {[%clk 0:02:12]}  Qxb2 {[%clk 0:00:36]} 22. Rb1 {[%clk 0:02:08]}  Qxa3 {[%clk 0:00:36]} 23. Rb3 {[%clk 0:01:56]}  Qa4 {[%clk 0:00:23]} 24. Bf4 {[%clk 0:01:33]}  Nd4 {[%clk 0:00:13]} 25. Qxb7 {[%clk 0:01:30]}  Qc6 {[%clk 0:00:10]} 26. Rxd4 {[%clk 0:01:28]}  Qxb7 {[%clk 0:00:07]} 27. Rxb7 {[%clk 0:01:28]}  Bc5 {[%clk 0:00:05]} 28. Rc4 {[%clk 0:01:24]} 1-0


[Site "https://www.chess.com"]

[Event "Titled Tuesday Blitz September 13 Late 2022"]
[White "Melian, Juan Sebastian"]
[Black "Al Hosani, Omran"]
[WhiteFideId "3706575"]
[BlackFideId "9308733"]
[WhiteElo "1851"]
[BlackElo "2167"]
[Result "0-1"]
[Round "07"]
[TimeControl "180+1"]
[Date "2022.09.13"]
[WhiteClock "0:00:08"]
[BlackClock "0:01:01"]

1. d4 {[%clk 0:03:00]}  Nf6 {[%clk 0:02:54]} 2. c4 {[%clk 0:03:01]}  e6 {[%clk 0:02:50]} 3. Nf3 {[%clk 0:03:00]}  d5 {[%clk 0:02:50]} 4. g3 {[%clk 0:03:00]}  Bb4+ {[%clk 0:02:50]} 5. Bd2 {[%clk 0:03:00]}  a5 {[%clk 0:02:49]} 6. Bg2 {[%clk 0:02:59]}  O-O {[%clk 0:02:49]} 7. O-O {[%clk 0:02:55]}  dxc4 {[%clk 0:02:49]} 8. Qc2 {[%clk 0:02:55]}  Bxd2 {[%clk 0:02:44]} 9. Nbxd2 {[%clk 0:02:56]}  b5 {[%clk 0:02:45]} 10. a4 {[%clk 0:02:57]}  c6 {[%clk 0:02:39]} 11. b3 {[%clk 0:02:57]}  cxb3 {[%clk 0:02:35]} 12. Nxb3 {[%clk 0:02:58]}  b4 {[%clk 0:02:36]} 13. e4 {[%clk 0:02:48]}  Nbd7 {[%clk 0:02:18]} 14. Rfd1 {[%clk 0:01:33]}  Bb7 {[%clk 0:02:15]} 15. Rac1 {[%clk 0:01:22]}  Qe7 {[%clk 0:01:44]} 16. h3 {[%clk 0:01:11]}  Rfc8 {[%clk 0:01:39]} 17. g4 {[%clk 0:01:08]}  c5 {[%clk 0:01:33]} 18. dxc5 {[%clk 0:00:36]}  Bxe4 {[%clk 0:01:31]} 19. Qe2 {[%clk 0:00:25]}  Bd5 {[%clk 0:01:26]} 20. Nfd4 {[%clk 0:00:20]}  Bxg2 {[%clk 0:01:21]} 21. Kxg2 {[%clk 0:00:21]}  Nxc5 {[%clk 0:01:19]} 22. Qf3 {[%clk 0:00:10]}  Nd5 {[%clk 0:01:10]} 23. Nxc5 {[%clk 0:00:08]}  Rxc5 {[%clk 0:01:09]} 24. Nb3 {[%clk 0:00:08]}  Rc3 {[%clk 0:01:04]} 25. Rd3 {[%clk 0:00:07]}  Rxd3 {[%clk 0:01:01]} 26. Qe3 {[%clk 0:00:08]} 0-1


[Site "https://www.chess.com"]

[Event "Titled Tuesday Blitz September 13 Late 2022"]
[White "Pap, Gyula"]
[Black "Llorente Zaro, Alfonso"]
[WhiteFideId "725323"]
[BlackFideId "2254131"]
[WhiteElo "2519"]
[BlackElo "2485"]
[Result "1-0"]
[Round "07"]
[TimeControl "180+1"]
[Date "2022.09.13"]
[WhiteClock "0:02:05"]
[BlackClock "0:01:37"]

1. d4 {[%clk 0:03:00]}  Nf6 {[%clk 0:02:50]} 2. c4 {[%clk 0:03:01]}  e6 {[%clk 0:02:49]} 3. Nc3 {[%clk 0:03:01]}  d5 {[%clk 0:02:50]} 4. cxd5 {[%clk 0:03:01]}  Nxd5 {[%clk 0:02:51]} 5. e4 {[%clk 0:03:01]}  Nxc3 {[%clk 0:02:51]} 6. bxc3 {[%clk 0:03:02]}  c5 {[%clk 0:02:52]} 7. Nf3 {[%clk 0:03:02]}  cxd4 {[%clk 0:02:53]} 8. cxd4 {[%clk 0:03:03]}  Bb4+ {[%clk 0:02:54]} 9. Bd2 {[%clk 0:03:04]}  Bxd2+ {[%clk 0:02:54]} 10. Qxd2 {[%clk 0:03:05]}  O-O {[%clk 0:02:55]} 11. Rd1 {[%clk 0:03:05]}  Nd7 {[%clk 0:02:55]} 12. Bd3 {[%clk 0:03:01]}  b6 {[%clk 0:02:55]} 13. e5 {[%clk 0:02:57]}  Bb7 {[%clk 0:02:51]} 14. Ng5 {[%clk 0:02:57]}  h6 {[%clk 0:02:51]} 15. Ne4 {[%clk 0:02:57]}  Bxe4 {[%clk 0:02:48]} 16. Bxe4 {[%clk 0:02:58]}  Rc8 {[%clk 0:02:49]} 17. O-O {[%clk 0:02:59]}  b5 {[%clk 0:02:49]} 18. Bb1 {[%clk 0:02:40]}  Nb6 {[%clk 0:02:47]} 19. Qd3 {[%clk 0:02:40]}  g6 {[%clk 0:02:47]} 20. Qxb5 {[%clk 0:02:39]}  Qd5 {[%clk 0:02:46]} 21. Qe2 {[%clk 0:02:26]}  Rfd8 {[%clk 0:02:46]} 22. h4 {[%clk 0:02:16]}  Rc4 {[%clk 0:02:01]} 23. h5 {[%clk 0:02:10]}  g5 {[%clk 0:02:01]} 24. Qd3 {[%clk 0:02:08]}  Kf8 {[%clk 0:01:37]} 25. Qh7 {[%clk 0:02:05]} 1-0


[Site "https://www.chess.com"]

[Event "Titled Tuesday Blitz September 13 Late 2022"]
[White "Papasimakopoulos, Alexandros"]
[Black "Nazaretyan, Tigran"]
[WhiteFideId "4244125"]
[BlackFideId "24162345"]
[WhiteElo "2357"]
[BlackElo "2173"]
[Result "1-0"]
[Round "07"]
[TimeControl "180+1"]
[Date "2022.09.13"]
[WhiteClock "0:02:08"]
[BlackClock "0:01:06"]

1. d4 {[%clk 0:03:00]}  Nf6 {[%clk 0:02:58]} 2. c4 {[%clk 0:03:00]}  c5 {[%clk 0:02:57]} 3. d5 {[%clk 0:03:00]}  e6 {[%clk 0:02:57]} 4. Nc3 {[%clk 0:03:00]}  exd5 {[%clk 0:02:57]} 5. cxd5 {[%clk 0:03:01]}  d6 {[%clk 0:02:57]} 6. Nf3 {[%clk 0:03:01]}  g6 {[%clk 0:02:54]} 7. Bf4 {[%clk 0:03:00]}  a6 {[%clk 0:02:53]} 8. a4 {[%clk 0:03:00]}  Bg7 {[%clk 0:02:53]} 9. h3 {[%clk 0:03:00]}  O-O {[%clk 0:02:53]} 10. e3 {[%clk 0:03:00]}  Qe7 {[%clk 0:02:52]} 11. Nd2 {[%clk 0:03:00]}  Nbd7 {[%clk 0:02:51]} 12. Be2 {[%clk 0:03:00]}  Ne5 {[%clk 0:02:50]} 13. O-O {[%clk 0:03:00]}  Rb8 {[%clk 0:02:44]} 14. Re1 {[%clk 0:02:59]}  Re8 {[%clk 0:02:39]} 15. e4 {[%clk 0:02:54]}  Bd7 {[%clk 0:02:33]} 16. a5 {[%clk 0:02:53]}  b5 {[%clk 0:02:32]} 17. axb6 {[%clk 0:02:53]}  Rxb6 {[%clk 0:02:32]} 18. Bxe5 {[%clk 0:02:50]}  dxe5 {[%clk 0:02:32]} 19. Nc4 {[%clk 0:02:48]}  Rb4 {[%clk 0:02:30]} 20. Rxa6 {[%clk 0:02:46]}  Reb8 {[%clk 0:02:21]} 21. Qd2 {[%clk 0:02:40]}  Ne8 {[%clk 0:02:12]} 22. Rea1 {[%clk 0:02:38]}  R4b7 {[%clk 0:01:58]} 23. R1a2 {[%clk 0:02:37]}  Nc7 {[%clk 0:01:57]} 24. d6 {[%clk 0:02:37]}  Qe8 {[%clk 0:01:41]} 25. dxc7 {[%clk 0:02:36]}  Rxc7 {[%clk 0:01:42]} 26. Nd5 {[%clk 0:02:36]}  Rcb7 {[%clk 0:01:41]} 27. Nd6 {[%clk 0:02:36]}  Qd8 {[%clk 0:01:28]} 28. Nxb7 {[%clk 0:02:36]}  Rxb7 {[%clk 0:01:29]} 29. Ra8 {[%clk 0:02:34]}  Rb8 {[%clk 0:01:29]} 30. Rxb8 {[%clk 0:02:34]}  Qxb8 {[%clk 0:01:30]} 31. Qa5 {[%clk 0:02:34]}  h5 {[%clk 0:01:27]} 32. Qa8 {[%clk 0:02:34]}  Qxa8 {[%clk 0:01:26]} 33. Rxa8+ {[%clk 0:02:35]}  Kh7 {[%clk 0:01:27]} 34. Ra7 {[%clk 0:02:35]}  Be6 {[%clk 0:01:27]} 35. Nc7 {[%clk 0:02:33]}  Bb3 {[%clk 0:01:26]} 36. Rb7 {[%clk 0:02:28]}  c4 {[%clk 0:01:25]} 37. Nb5 {[%clk 0:02:23]}  f5 {[%clk 0:01:23]} 38. Nd6 {[%clk 0:02:21]}  Kh6 {[%clk 0:01:13]} 39. Bxc4 {[%clk 0:02:21]}  Bc2 {[%clk 0:01:10]} 40. Nf7+ {[%clk 0:02:20]}  Kh7 {[%clk 0:01:10]} 41. exf5 {[%clk 0:02:20]}  gxf5 {[%clk 0:01:10]} 42. Nxe5 {[%clk 0:02:20]}  Be4 {[%clk 0:01:09]} 43. Re7 {[%clk 0:02:15]}  Kh6 {[%clk 0:01:09]} 44. f4 {[%clk 0:02:11]}  Bf8 {[%clk 0:01:07]} 45. Rc7 {[%clk 0:02:08]}  Bd6 {[%clk 0:01:06]} 46. Nf7+ {[%clk 0:02:08]} 1-0


[Site "https://www.chess.com"]

[Event "Titled Tuesday Blitz September 13 Late 2022"]
[White "Tari, Aryan"]
[Black "Keymer, Vincent"]
[WhiteFideId "1510045"]
[BlackFideId "12940690"]
[WhiteElo "2612"]
[BlackElo "2585"]
[Result "1-0"]
[Round "07"]
[TimeControl "180+1"]
[Date "2022.09.13"]
[WhiteClock "0:00:13"]
[BlackClock "0:00:01"]

1. e4 {[%clk 0:03:00]}  c6 {[%clk 0:02:53]} 2. d4 {[%clk 0:02:57]}  d5 {[%clk 0:02:54]} 3. e5 {[%clk 0:02:58]}  Bf5 {[%clk 0:02:52]} 4. Be3 {[%clk 0:02:51]}  Qb6 {[%clk 0:02:48]} 5. Qc1 {[%clk 0:02:44]}  e6 {[%clk 0:02:44]} 6. Nf3 {[%clk 0:02:35]}  c5 {[%clk 0:02:42]} 7. c4 {[%clk 0:02:31]}  cxd4 {[%clk 0:02:22]} 8. Nxd4 {[%clk 0:02:24]}  Bxb1 {[%clk 0:02:21]} 9. Rxb1 {[%clk 0:01:44]}  Bb4+ {[%clk 0:01:14]} 10. Kd1 {[%clk 0:01:30]}  Nc6 {[%clk 0:01:14]} 11. Nxe6 {[%clk 0:01:09]}  d4 {[%clk 0:00:56]} 12. Nxg7+ {[%clk 0:01:09]}  Kf8 {[%clk 0:00:43]} 13. Bh6 {[%clk 0:01:09]}  Nxh6 {[%clk 0:00:21]} 14. Qxh6 {[%clk 0:01:09]}  Nxe5 {[%clk 0:00:22]} 15. Qxb6 {[%clk 0:00:35]}  axb6 {[%clk 0:00:23]} 16. Nf5 {[%clk 0:00:36]}  d3 {[%clk 0:00:23]} 17. a3 {[%clk 0:00:23]}  Bc5 {[%clk 0:00:23]} 18. f4 {[%clk 0:00:24]}  Ng4 {[%clk 0:00:20]} 19. Bxd3 {[%clk 0:00:25]}  Nf2+ {[%clk 0:00:19]} 20. Kc2 {[%clk 0:00:25]}  Rd8 {[%clk 0:00:18]} 21. Rhd1 {[%clk 0:00:16]}  Nxd1 {[%clk 0:00:17]} 22. Rxd1 {[%clk 0:00:17]}  Rg8 {[%clk 0:00:17]} 23. g3 {[%clk 0:00:17]}  Rg6 {[%clk 0:00:18]} 24. b4 {[%clk 0:00:17]}  Bd6 {[%clk 0:00:11]} 25. Be4 {[%clk 0:00:17]}  Bc7 {[%clk 0:00:09]} 26. Rxd8+ {[%clk 0:00:15]}  Bxd8 {[%clk 0:00:10]} 27. Bxb7 {[%clk 0:00:16]}  Re6 {[%clk 0:00:10]} 28. Kd2 {[%clk 0:00:15]}  Bf6 {[%clk 0:00:09]} 29. Bd5 {[%clk 0:00:16]}  Re8 {[%clk 0:00:09]} 30. a4 {[%clk 0:00:15]}  Rd8 {[%clk 0:00:09]} 31. Kc2 {[%clk 0:00:14]}  Be7 {[%clk 0:00:08]} 32. Kb3 {[%clk 0:00:14]}  Bf6 {[%clk 0:00:07]} 33. c5 {[%clk 0:00:14]}  bxc5 {[%clk 0:00:05]} 34. Bc6 {[%clk 0:00:12]}  cxb4 {[%clk 0:00:05]} 35. a5 {[%clk 0:00:13]}  Rc8 {[%clk 0:00:03]} 36. Bb7 {[%clk 0:00:13]}  Rc7 {[%clk 0:00:01]} 37. a6 {[%clk 0:00:13]}  Rc3+ {[%clk 0:00:01]} 38. Kxb4 {[%clk 0:00:13]} 1-0


[Site "https://www.chess.com"]

[Event "Titled Tuesday Blitz September 13 Late 2022"]
[White "Trost, Edvin"]
[Black "Arnold, Ken"]
[WhiteFideId "1729519"]
[BlackFideId "2056836"]
[WhiteElo "2186"]
[BlackElo "2452"]
[Result "0-1"]
[Round "07"]
[TimeControl "180+1"]
[Date "2022.09.13"]
[WhiteClock "0:00:05"]
[BlackClock "0:00:18"]

1. Nf3 {[%clk 0:02:59]}  d5 {[%clk 0:02:59]} 2. b3 {[%clk 0:02:54]}  Nf6 {[%clk 0:02:59]} 3. Bb2 {[%clk 0:02:54]}  c5 {[%clk 0:02:56]} 4. g3 {[%clk 0:02:54]}  Nc6 {[%clk 0:02:56]} 5. Bg2 {[%clk 0:02:55]}  Bg4 {[%clk 0:02:55]} 6. O-O {[%clk 0:02:55]}  e6 {[%clk 0:02:56]} 7. d3 {[%clk 0:02:54]}  Be7 {[%clk 0:02:55]} 8. Nbd2 {[%clk 0:02:54]}  O-O {[%clk 0:02:54]} 9. Re1 {[%clk 0:02:53]}  Qc7 {[%clk 0:02:52]} 10. e4 {[%clk 0:02:53]}  dxe4 {[%clk 0:02:52]} 11. Nxe4 {[%clk 0:02:49]}  Nxe4 {[%clk 0:02:51]} 12. Rxe4 {[%clk 0:02:50]}  Bf5 {[%clk 0:02:45]} 13. Re1 {[%clk 0:02:47]}  Rad8 {[%clk 0:02:37]} 14. Qd2 {[%clk 0:02:40]}  Nd4 {[%clk 0:02:34]} 15. Nxd4 {[%clk 0:02:19]}  cxd4 {[%clk 0:02:33]} 16. Be4 {[%clk 0:02:20]}  Bg6 {[%clk 0:02:31]} 17. Bxg6 {[%clk 0:02:18]}  hxg6 {[%clk 0:02:30]} 18. Re4 {[%clk 0:02:19]}  Bf6 {[%clk 0:02:01]} 19. h4 {[%clk 0:02:05]}  Rd5 {[%clk 0:01:59]} 20. Rae1 {[%clk 0:01:59]}  Rc8 {[%clk 0:01:58]} 21. R1e2 {[%clk 0:01:59]}  Rc5 {[%clk 0:01:52]} 22. Bxd4 {[%clk 0:01:54]}  Rxc2 {[%clk 0:01:47]} 23. Qe3 {[%clk 0:01:38]}  Rxe2 {[%clk 0:01:41]} 24. Qxe2 {[%clk 0:01:39]}  Bxd4 {[%clk 0:01:39]} 25. Rxd4 {[%clk 0:01:40]}  Qc1+ {[%clk 0:01:37]} 26. Kg2 {[%clk 0:01:40]}  Qc6+ {[%clk 0:01:20]} 27. Qe4 {[%clk 0:01:40]}  Qxe4+ {[%clk 0:01:17]} 28. dxe4 {[%clk 0:01:41]}  Rc2 {[%clk 0:01:12]} 29. Rd8+ {[%clk 0:01:34]}  Kh7 {[%clk 0:01:12]} 30. Rd7 {[%clk 0:01:35]}  f6 {[%clk 0:01:10]} 31. a4 {[%clk 0:01:31]}  b6 {[%clk 0:00:57]} 32. Rxa7 {[%clk 0:01:32]}  Rc3 {[%clk 0:00:57]} 33. b4 {[%clk 0:01:09]}  Rc4 {[%clk 0:00:55]} 34. b5 {[%clk 0:01:10]}  Rxe4 {[%clk 0:00:54]} 35. Kf3 {[%clk 0:01:10]}  Rb4 {[%clk 0:00:54]} 36. Ke3 {[%clk 0:01:08]}  e5 {[%clk 0:00:53]} 37. Kd3 {[%clk 0:01:08]}  f5 {[%clk 0:00:52]} 38. Kc3 {[%clk 0:01:08]}  Rb1 {[%clk 0:00:46]} 39. Ra6 {[%clk 0:01:04]}  Ra1 {[%clk 0:00:43]} 40. Kb3 {[%clk 0:01:04]}  Rb1+ {[%clk 0:00:42]} 41. Kc4 {[%clk 0:01:04]}  Ra1 {[%clk 0:00:40]} 42. Kd5 {[%clk 0:01:04]}  e4 {[%clk 0:00:40]} 43. Kc6 {[%clk 0:01:03]}  Ra2 {[%clk 0:00:37]} 44. Kxb6 {[%clk 0:01:02]}  Rxf2 {[%clk 0:00:37]} 45. Ka7 {[%clk 0:01:02]}  Ra2 {[%clk 0:00:35]} 46. b6 {[%clk 0:00:33]}  e3 {[%clk 0:00:33]} 47. b7 {[%clk 0:00:34]}  e2 {[%clk 0:00:33]} 48. b8=Q {[%clk 0:00:05]}  e1=Q {[%clk 0:00:32]} 49. Qb6 {[%clk 0:00:04]}  Qxg3 {[%clk 0:00:28]} 50. h5 {[%clk 0:00:03]}  gxh5 {[%clk 0:00:24]} 51. Qc5 {[%clk 0:00:03]}  Qg4 {[%clk 0:00:21]} 52. a5 {[%clk 0:00:02]}  Ra4 {[%clk 0:00:20]} 53. Ka8 {[%clk 0:00:02]}  Qe4+ {[%clk 0:00:18]} 54. Ka7 {[%clk 0:00:02]}  Rc4 {[%clk 0:00:16]} 55. Qb6 {[%clk 0:00:01]}  Qe7+ {[%clk 0:00:16]} 56. Ka8 {[%clk 0:00:01]}  Rc8+ {[%clk 0:00:15]} 57. Qb8 {[%clk 0:00:02]}  Rxb8+ {[%clk 0:00:15]} 58. Kxb8 {[%clk 0:00:02]}  Qd8+ {[%clk 0:00:15]} 59. Ka7 {[%clk 0:00:02]}  Qc7+ {[%clk 0:00:16]} 60. Ka8 {[%clk 0:00:03]}  Qc8+ {[%clk 0:00:16]} 61. Ka7 {[%clk 0:00:03]}  Qc7+ {[%clk 0:00:16]} 62. Ka8 {[%clk 0:00:03]}  f4 {[%clk 0:00:17]} 63. Rb6 {[%clk 0:00:02]}  Qc8+ {[%clk 0:00:17]} 64. Ka7 {[%clk 0:00:02]}  f3 {[%clk 0:00:17]} 65. a6 {[%clk 0:00:02]}  f2 {[%clk 0:00:16]} 66. Rb8 {[%clk 0:00:02]}  Qc5+ {[%clk 0:00:16]} 67. Ka8 {[%clk 0:00:03]}  f1=Q {[%clk 0:00:15]} 68. Rb7 {[%clk 0:00:02]}  Qxa6+ {[%clk 0:00:14]} 69. Kb8 {[%clk 0:00:02]}  Qxb7+ {[%clk 0:00:14]} 70. Kxb7 {[%clk 0:00:01]}  Qg5 {[%clk 0:00:15]} 71. Ka7 {[%clk 0:00:02]}  Qf6 {[%clk 0:00:16]} 72. Kb7 {[%clk 0:00:03]}  h4 {[%clk 0:00:17]} 73. Kb8 {[%clk 0:00:04]}  h3 {[%clk 0:00:18]} 74. Kc8 {[%clk 0:00:04]}  h2 {[%clk 0:00:19]} 75. Kd7 {[%clk 0:00:05]}  h1=Q {[%clk 0:00:19]} 76. Ke8 {[%clk 0:00:06]}  Qa8+ {[%clk 0:00:18]} 77. Kd7 {[%clk 0:00:06]}  Qb7+ {[%clk 0:00:18]} 78. Ke8 {[%clk 0:00:05]}  Qbe7# {[%clk 0:00:18]} 0-1


[Site "https://www.chess.com"]

[Event "Titled Tuesday Blitz September 13 Late 2022"]
[White "Urbina Perez, Juan Antonio"]
[Black "Hjartarson, Johann"]
[WhiteFideId "2217368"]
[BlackFideId "2300044"]
[WhiteElo "2197"]
[BlackElo "2458"]
[Result "0-1"]
[Round "07"]
[TimeControl "180+1"]
[Date "2022.09.13"]
[WhiteClock "0:00:12"]
[BlackClock "0:00:14"]

1. e4 {[%clk 0:03:00]}  c5 {[%clk 0:02:59]} 2. Nf3 {[%clk 0:02:57]}  e6 {[%clk 0:02:59]} 3. b3 {[%clk 0:02:55]}  b6 {[%clk 0:02:57]} 4. d4 {[%clk 0:02:46]}  cxd4 {[%clk 0:02:56]} 5. Nxd4 {[%clk 0:02:44]}  Bb7 {[%clk 0:02:55]} 6. Bd3 {[%clk 0:02:42]}  Nf6 {[%clk 0:02:54]} 7. Qe2 {[%clk 0:02:40]}  Bc5 {[%clk 0:02:48]} 8. Bb2 {[%clk 0:02:40]}  O-O {[%clk 0:02:46]} 9. O-O {[%clk 0:02:39]}  d5 {[%clk 0:02:43]} 10. e5 {[%clk 0:02:34]}  Nfd7 {[%clk 0:02:42]} 11. Nd2 {[%clk 0:02:33]}  Nc6 {[%clk 0:02:35]} 12. Nxc6 {[%clk 0:02:19]}  Bxc6 {[%clk 0:02:35]} 13. Nf3 {[%clk 0:02:19]}  Qe7 {[%clk 0:02:20]} 14. Nd4 {[%clk 0:02:09]}  Bb7 {[%clk 0:02:19]} 15. Kh1 {[%clk 0:02:08]}  a5 {[%clk 0:02:08]} 16. a4 {[%clk 0:02:08]}  Bxd4 {[%clk 0:02:07]} 17. Bxd4 {[%clk 0:02:07]}  Nc5 {[%clk 0:02:07]} 18. f4 {[%clk 0:02:00]}  g6 {[%clk 0:02:05]} 19. Rab1 {[%clk 0:01:41]}  Rac8 {[%clk 0:02:02]} 20. Qe3 {[%clk 0:01:33]}  Rc7 {[%clk 0:01:56]} 21. Be2 {[%clk 0:01:29]}  Rfc8 {[%clk 0:01:50]} 22. c3 {[%clk 0:01:24]}  Ne4 {[%clk 0:01:44]} 23. Rfc1 {[%clk 0:01:22]}  h5 {[%clk 0:01:31]} 24. Bf3 {[%clk 0:01:22]}  Nc5 {[%clk 0:01:25]} 25. h3 {[%clk 0:01:15]}  h4 {[%clk 0:01:21]} 26. Kh2 {[%clk 0:01:11]}  Ba6 {[%clk 0:01:14]} 27. Rd1 {[%clk 0:01:05]}  b5 {[%clk 0:01:10]} 28. axb5 {[%clk 0:00:54]}  Bxb5 {[%clk 0:01:09]} 29. b4 {[%clk 0:00:54]}  axb4 {[%clk 0:01:05]} 30. Rxb4 {[%clk 0:00:55]}  Bc4 {[%clk 0:01:02]} 31. Rdb1 {[%clk 0:00:41]}  Nd3 {[%clk 0:00:57]} 32. Rb8 {[%clk 0:00:41]}  Qa3 {[%clk 0:00:46]} 33. Rxc8+ {[%clk 0:00:32]}  Rxc8 {[%clk 0:00:45]} 34. f5 {[%clk 0:00:29]}  exf5 {[%clk 0:00:37]} 35. e6 {[%clk 0:00:29]}  Qd6+ {[%clk 0:00:36]} 36. Kg1 {[%clk 0:00:25]}  Qxe6 {[%clk 0:00:32]} 37. Qh6 {[%clk 0:00:25]}  Ne5 {[%clk 0:00:31]} 38. Re1 {[%clk 0:00:23]}  Nxf3+ {[%clk 0:00:31]} 39. Kf2 {[%clk 0:00:20]}  Qxe1+ {[%clk 0:00:29]} 40. Kxf3 {[%clk 0:00:19]}  Qf1+ {[%clk 0:00:17]} 41. Bf2 {[%clk 0:00:12]}  Be2+ {[%clk 0:00:14]} 0-1


[Site "https://www.chess.com"]